[Event "7. Arber-Senioren-Cup 2019"]
[Site "Bodenmais"]
[Date "2019.08.02"]
[Round "7.13"]
[White "Mahnke, Ralf"]
[Black "Nickl, Klaus"]
[Result "0-1"]
[ECO "E21"]
[WhiteElo "1925"]
[BlackElo "1988"]
[Annotator "NA"]
[PlyCount "105"]
[EventDate "2019.07.27"]
[EventType "swiss"]
[EventCountry "GER"]
[SourceTitle "playchess.com"]
[Source "ChessBase"]
[SourceQuality "1"]
[TimeControl "60/7800+30:0"]

1. d4 {[%emt 0:00:00]} Nf6 {[%emt 0:00:00]} 2. c4 {[%emt 0:00:00]} e6 {[%emt 0:00:01]} 3. Nc3 {[%emt 0:00:04]} Bb4 {[%emt 0:00:12]} 4. Nf3 {[%emt 0:00:31]} c5 {[%emt 0:01:04]} 5. e3 {[%emt 0:00:34]} O-O {[%emt 0:01:25]} 6. Be2 {[%emt 0:01:13]} d6 {[%emt 0:08:51]} 7. O-O {[%emt 0:00:47]} Nc6 {[%emt 0:01:33]} 8. Qc2 {[%emt 0:03:20]} Qe7 {[%emt 0:03:04]} 9. a3 {[%emt 0:02:33]} Bxc3 {[%emt 0:04:16]} 10. Qxc3 {[%emt 0:00:28]} e5 {[%emt 0:01:48]} 11. dxc5 {[%emt 0:16:23]} dxc5 {[%emt 0:01:14]} 12. b3 {[%emt 0:00:25]} Bg4 {[%emt 0:10:09]} 13. Re1 {[%emt 0:02:42]} Rad8 {[%emt 0:04:42]} 14. Bb2 {[%emt 0:02:32]} e4 {[%emt 0:06:53]} 15. Nd2 {[%emt 0:01:56]} Bxe2 {[%emt 0:00:19]} 16. Rxe2 {[%emt 0:00:06]} Rd3 {[%emt 0:00:33]} 17. Qc2 {[%emt 0:01:03]} Rfd8 {[%emt 0:00:26]} 18. Nf1 {[%emt 0:01:57]} Ng4 {[%emt 0:07:58]} 19. Rd2 {[%emt 0:02:57]} f5 {[%emt 0:15:51]} 20. Rad1 {[%emt 0:01:23]} Nge5 {[%emt 0:03:24]} 21. Rxd3 {[%emt 0:01:25]} Nxd3 {[%emt 0:00:59]} 22. Bc3 {[%emt 0:06:10]} Rd6 {[%emt 0:03:02]} 23. f4 {[%emt 0:04:51]} Rh6 {[%emt 0:05:15]} 24. g3 {[%emt 0:05:08]} Rd6 {[%emt 0:01:14]} 25. Nd2 {[%emt 0:04:48]} g5 {[%emt 0:02:13]} 26. Nf1 {[%emt 0:01:50]} h5 {[%emt 0:00:52]} 27. Qe2 {[%emt 0:02:03]} Rh6 {[%emt 0:00:25]} 28. Be1 {[%emt 0:03:33]} h4 {[%emt 0:02:39]} 29. gxh4 {[%emt 0:01:49]} gxf4 {[%emt 0:00:58]} 30. exf4 {[%emt 0:08:04]} Nd4 {[%emt 0:03:39]} 31. Qg2+ {[%emt 0:02:18]} Kh7 {[%emt 0:00:25]} 32. Bg3 {[%emt 0:03:32]} Nf3+ {[%emt 0:00:57]} 33. Kh1 {[%emt 0:00:41]} Nxh4 {[%emt 0:00:17]} 34. Qe2 {[%emt 0:02:05]} Qf6 {[%emt 0:01:29]} 35. Ne3 {[%emt 0:01:21]} Ng6 {[%emt 0:01:18]} 36. Nd5 {[%emt 0:00:24]} Qd6 {[%emt 0:03:41]} 37. Rf1 {[%emt 0:01:06]} Ne7 {[%emt 0:02:49]} 38. Nxe7 {[%emt 0:07:11]} Qxe7 {[%emt 0:00:02]} 39. Rg1 {[%emt 0:00:08]} Qf6 {[%emt 0:03:41]} 40. Qg2 {[%emt 0:00:24]} Qg6 41. Qd2 {[%emt 0:00:46]} Qh5 {[%emt 0:03:16]} 42. Qe3 {[%emt 0:04:31]} Rg6 {[%emt 0:01:02]} 43. Rf1 {[%emt 0:01:43]} Qh3 {[%emt 0:01:36]} 44. Rg1 {[%emt 0:01:50]} Rg4 {[%emt 0:01:34]} 45. Bf2 {[%emt 0:18:59]} Rxg1+ {[%emt 0:15:41]} 46. Bxg1 {[%emt 0:03:28]} Qf1 {[%emt 0:00:26]} 47. Qg3 {[%emt 0:02:35]} Qxf4 {[%emt 0:00:32]} 48. Qh3+ {[%emt 0:00:48]} Kg7 {[%emt 0:01:23]} 49. Be3 {[%emt 0:00:28]} Nf2+ {[%emt 0:01:21]} 50. Bxf2 {[%emt 0:00:17]} Qxf2 {[%emt 0:00:04]} 51. Qg3+ {[%emt 0:01:42]} Qxg3 {[%emt 0:00:18]} 52. hxg3 {[%emt 0:00:04]} b6 {[%emt 0:00:00]} 53. Kg2 {[%emt 0:00:26]} 0-1

[Event "7. Arber-Senioren-Cup 2019"]
[Site "Bodenmais"]
[Date "2019.08.02"]
[Round "7.14"]
[White "Steiger, Michael"]
[Black "Latzel, Wolfgang"]
[Result "1/2-1/2"]
[ECO "A26"]
[WhiteElo "2016"]
[BlackElo "1881"]
[Annotator "NA"]
[PlyCount "55"]
[EventDate "2019.07.27"]
[EventType "swiss"]
[EventCountry "GER"]
[SourceTitle "playchess.com"]
[Source "ChessBase"]
[SourceQuality "1"]
[TimeControl "60/7800+30:0"]

1. c4 {[%emt 0:00:00]} d6 {[%emt 0:00:00]} 2. g3 {[%emt 0:00:00]} g6 {[%emt 0:00:00]} 3. Bg2 {[%emt 0:00:02]} Bg7 {[%emt 0:00:00]} 4. Nc3 {[%emt 0:00:27]} Nc6 {[%emt 0:00:25]} 5. d3 {[%emt 0:00:46]} e5 {[%emt 0:00:08]} 6. e4 {[%emt 0:00:14]} Be6 {[%emt 0:00:14]} 7. Nge2 {[%emt 0:00:34]} Qd7 {[%emt 0:00:25]} 8. Nd5 {[%emt 0:01:02]} Nce7 {[%emt 0:00:14]} 9. O-O {[%emt 0:10:24]} c6 {[%emt 0:01:02]} 10. Ne3 {[%emt 0:03:18]} Bh3 {[%emt 0:00:26]} 11. d4 {[%emt 0:02:05]} Bxg2 {[%emt 0:01:49]} 12. Kxg2 {[%emt 0:01:30]} Nf6 {[%emt 0:05:16]} 13. f3 {[%emt 0:07:13]} Rd8 {[%emt 0:02:34]} 14. d5 {[%emt 0:09:47]} O-O {[%emt 0:03:07]} 15. Qa4 {[%emt 0:09:09]} cxd5 {[%emt 0:08:02]} 16. Qxd7 {[%emt 0:00:15]} Rxd7 {[%emt 0:00:21]} 17. cxd5 {[%emt 0:05:20]} Rc8 {[%emt 0:00:28]} 18. Bd2 {[%emt 0:01:40]} Ne8 {[%emt 0:01:20]} 19. Rac1 {[%emt 0:01:45]} Rdc7 {[%emt 0:02:46]} 20. Ba5 {[%emt 0:04:40]} Rxc1 {[%emt 0:04:23]} 21. Rxc1 {[%emt 0:00:32]} Rxc1 {[%emt 0:00:29]} 22. Nxc1 {[%emt 0:00:01]} Bh6 {[%emt 0:00:20]} 23. Kf2 {[%emt 0:00:41]} f5 {[%emt 0:07:09]} 24. Ne2 {[%emt 0:02:21]} Bxe3+ {[%emt 0:07:07]} 25. Kxe3 {[%emt 0:00:03]} Kf7 {[%emt 0:01:01]} 26. Bd8 {[%emt 0:02:25]} Nf6 {[%emt 0:04:30]} 27. h3 {[%emt 0:06:50]} Ke8 {[%emt 0:05:53]} 28. Bc7 1/2-1/2

[Event "7. Arber-Senioren-Cup 2019"]
[Site "Bodenmais"]
[Date "2019.08.02"]
[Round "7.15"]
[White "Braeu, Ludwig"]
[Black "Schwalb, Manfred"]
[Result "0-1"]
[ECO "A36"]
[WhiteElo "1818"]
[BlackElo "1965"]
[Annotator "NA"]
[PlyCount "68"]
[EventDate "2019.07.27"]
[EventType "swiss"]
[EventCountry "GER"]
[SourceTitle "playchess.com"]
[Source "ChessBase"]
[SourceQuality "1"]
[TimeControl "60/7800+30:0"]

1. c4 {[%emt 0:00:00]} g6 {[%emt 0:00:00]} 2. g3 {[%emt 0:00:30]} Bg7 {[%emt 0:00:30]} 3. Bg2 {[%emt 0:00:30]} c5 {[%emt 0:00:30]} 4. Nc3 {[%emt 0:02:34]} Nc6 {[%emt 0:00:30]} 5. e3 {[%emt 0:01:00]} e6 {[%emt 0:01:01]} 6. Nge2 {[%emt 0:00:43]} Nge7 {[%emt 0:00:30]} 7. d4 {[%emt 0:01:46]} cxd4 {[%emt 0:05:14]} 8. exd4 {[%emt 0:00:31]} d5 {[%emt 0:00:30]} 9. cxd5 {[%emt 0:00:47]} exd5 {[%emt 0:00:40]} 10. O-O {[%emt 0:00:30]} Be6 {[%emt 0:03:58]} 11. Be3 {[%emt 0:06:12]} Qd7 {[%emt 0:29:45]} 12. Re1 {[%emt 0:18:03]} O-O {[%emt 0:01:32]} 13. Qd2 {[%emt 0:04:05]} Nf5 {[%emt 0:07:02]} 14. Nf4 {[%emt 0:08:01]} Nfxd4 {[%emt 0:06:01]} 15. Nfxd5 {[%emt 0:00:41]} Rad8 {[%emt 0:04:38]} 16. Rad1 {[%emt 0:02:24]} Bg4 {[%emt 0:01:52]} 17. Bxd4 {[%emt 0:11:55]} Nxd4 {[%emt 0:01:48]} 18. Re7 {[%emt 0:12:41]} Qd6 {[%emt 0:26:00]} 19. Rxb7 {[%emt 0:29:54]} Rfe8 {[%emt 0:08:09]} 20. f3 {[%emt 0:04:21]} Bxf3 {[%emt 0:01:47]} 21. Qf2 {[%emt 0:01:56]} Qc5 {[%emt 0:14:15]} 22. Bxf3 {[%emt 0:05:32]} Nxf3+ {[%emt 0:00:30]} 23. Kg2 {[%emt 0:00:30]} Qxf2+ {[%emt 0:00:42]} 24. Kxf2 {[%emt 0:00:30]} Nxh2 {[%emt 0:01:06]} 25. Kg2 {[%emt 0:01:09]} Ng4 {[%emt 0:00:30]} 26. Rxa7 {[%emt 0:08:30]} Bxc3 {[%emt 0:02:12]} 27. bxc3 {[%emt 0:00:30]} Rxd5 {[%emt 0:00:30]} 28. Rxd5 {[%emt 0:00:48]} Ne3+ {[%emt 0:00:30]} 29. Kf3 {[%emt 0:01:35]} Nxd5 {[%emt 0:00:30]} 30. c4 {[%emt 0:00:35]} Ne7 {[%emt 0:01:25]} 31. Rc7 {[%emt 0:03:05]} Kf8 {[%emt 0:01:58]} 32. c5 {[%emt 0:01:48]} Ra8 {[%emt 0:01:09]} 33. c6 {[%emt 0:01:13]} Rxa2 {[%emt 0:00:30]} 34. Ke4 {[%emt 0:00:38]} Rc2 {[%emt 0:00:30]} 0-1

[Event "7. Arber-Senioren-Cup 2019"]
[Site "Bodenmais"]
[Date "2019.08.02"]
[Round "7.16"]
[White "Ketzscher, Roland"]
[Black "Meckel, Helmut"]
[Result "1/2-1/2"]
[ECO "A97"]
[WhiteElo "1917"]
[BlackElo "1804"]
[Annotator "NA"]
[PlyCount "38"]
[EventDate "2019.07.27"]
[EventType "swiss"]
[EventCountry "GER"]
[SourceTitle "playchess.com"]
[Source "ChessBase"]
[SourceQuality "1"]
[TimeControl "60/7800+30:0"]

1. d4 {[%emt 0:00:00]} e6 {[%emt 0:00:00]} 2. Nf3 {[%emt 0:00:00]} f5 {[%emt 0:00:00]} 3. g3 {[%emt 0:00:08]} Nf6 {[%emt 0:00:00]} 4. Bg2 {[%emt 0:00:08]} Be7 {[%emt 0:00:04]} 5. O-O {[%emt 0:00:11]} O-O {[%emt 0:00:15]} 6. c4 {[%emt 0:00:15]} d6 {[%emt 0:00:13]} 7. Nc3 {[%emt 0:00:39]} Qe8 {[%emt 0:00:05]} 8. Re1 {[%emt 0:00:56]} Qh5 {[%emt 0:00:40]} 9. e4 {[%emt 0:01:20]} fxe4 {[%emt 0:00:30]} 10. Nxe4 {[%emt 0:00:09]} Nc6 {[%emt 0:00:38]} 11. Qb3 {[%emt 0:18:02]} Nxe4 {[%emt 0:11:11]} 12. Rxe4 {[%emt 0:00:10]} d5 {[%emt 0:04:27]} 13. cxd5 {[%emt 0:12:34]} exd5 {[%emt 0:00:27]} 14. Re1 {[%emt 0:02:25]} Kh8 {[%emt 0:14:03]} 15. Qc3 {[%emt 0:06:49]} Bb4 {[%emt 0:00:39]} 16. Qe3 {[%emt 0:11:53]} Bxe1 {[%emt 0:01:00]} 17. Qxe1 {[%emt 0:00:20]} Bg4 {[%emt 0:03:46]} 18. Ne5 {[%emt 0:02:02]} Nxd4 {[%emt 0:02:08]} 19. Nxg4 {[%emt 0:03:46]} Qxg4 {[%emt 0:01:20]} 1/2-1/2

[Event "7. Arber-Senioren-Cup 2019"]
[Site "Bodenmais"]
[Date "2019.08.02"]
[Round "7.17"]
[White "Augustin, Christian"]
[Black "Otto, Klaus"]
[Result "1-0"]
[ECO "D05"]
[WhiteElo "1971"]
[BlackElo "1725"]
[Annotator "NA"]
[PlyCount "62"]
[EventDate "2019.07.27"]
[EventType "swiss"]
[EventCountry "GER"]
[SourceTitle "playchess.com"]
[Source "ChessBase"]
[SourceQuality "1"]
[TimeControl "60/7800+30:0"]

1. d4 {[%emt 0:00:00]} Nf6 {[%emt 0:00:00]} 2. e3 {[%emt 0:00:00]} d5 {[%emt 0:00:09]} 3. Nf3 {[%emt 0:00:04]} e6 {[%emt 0:00:14]} 4. Bd3 {[%emt 0:00:06]} Bd7 {[%emt 0:00:58]} 5. Ne5 {[%emt 0:01:39]} Be7 {[%emt 0:02:08]} 6. Nd2 {[%emt 0:01:03]} a6 {[%emt 0:00:45]} 7. a4 {[%emt 0:07:15]} c5 {[%emt 0:01:21]} 8. c3 {[%emt 0:00:13]} c4 {[%emt 0:00:40]} 9. Bc2 {[%emt 0:00:18]} O-O {[%emt 0:01:24]} 10. O-O {[%emt 0:00:18]} Nc6 {[%emt 0:01:46]} 11. f4 {[%emt 0:00:20]} Ne8 {[%emt 0:00:53]} 12. Rf3 {[%emt 0:12:53]} f5 {[%emt 0:01:27]} 13. Rh3 {[%emt 0:13:06]} Nf6 {[%emt 0:01:09]} 14. Ndf3 {[%emt 0:00:57]} h6 {[%emt 0:01:25]} 15. Ng6 {[%emt 0:04:03]} Rf7 {[%emt 0:01:09]} 16. Bd2 {[%emt 0:09:53]} Nh7 {[%emt 0:02:07]} 17. Nfe5 {[%emt 0:03:47]} Nxe5 {[%emt 0:02:49]} 18. Nxe5 {[%emt 0:01:25]} Rf8 {[%emt 0:00:38]} 19. Be1 {[%emt 0:00:39]} Be8 {[%emt 0:01:04]} 20. Qf3 {[%emt 0:02:24]} Bf7 {[%emt 0:04:21]} 21. g4 {[%emt 0:03:44]} fxg4 {[%emt 0:04:47]} 22. Qxg4 {[%emt 0:03:31]} Kh8 {[%emt 0:01:21]} 23. Nxf7+ {[%emt 0:01:01]} Rxf7 {[%emt 0:00:31]} 24. Qg6 {[%emt 0:00:12]} Qg8 {[%emt 0:01:12]} 25. Qxe6 {[%emt 0:03:09]} Nf6 {[%emt 0:03:50]} 26. Bg6 {[%emt 0:02:15]} Raf8 {[%emt 0:02:06]} 27. Bh4 {[%emt 0:02:52]} Bd8 {[%emt 0:00:41]} 28. Bxf7 {[%emt 0:00:31]} Rxf7 {[%emt 0:00:16]} 29. Bxf6 {[%emt 0:01:21]} Bxf6 {[%emt 0:01:12]} 30. Qxd5 {[%emt 0:00:28]} Rc7 {[%emt 0:00:40]} 31. Qxg8+ {[%emt 0:00:15]} Kxg8 {[%emt 0:00:17]} 1-0

[Event "7. Arber-Senioren-Cup 2019"]
[Site "Bodenmais"]
[Date "2019.08.02"]
[Round "7.18"]
[White "Limberg, Siegfried"]
[Black "Boldt, Heinrich"]
[Result "1-0"]
[ECO "D02"]
[WhiteElo "1983"]
[BlackElo "1803"]
[Annotator "NA"]
[PlyCount "75"]
[EventDate "2019.07.27"]
[EventType "swiss"]
[EventCountry "GER"]
[SourceTitle "playchess.com"]
[Source "ChessBase"]
[SourceQuality "1"]
[TimeControl "60/7800+30:0"]

1. d4 {[%emt 0:00:00]} d5 {[%emt 0:00:00]} 2. Nf3 {[%emt 0:00:00]} Bf5 {[%emt 0:00:00]} 3. c4 {[%emt 0:00:28]} e6 {[%emt 0:00:13]} 4. Nc3 {[%emt 0:00:20]} c6 {[%emt 0:02:54]} 5. e3 {[%emt 0:00:25]} Nf6 {[%emt 0:01:49]} 6. Be2 {[%emt 0:00:52]} Be7 {[%emt 0:00:44]} 7. Ne5 {[%emt 0:01:09]} h6 {[%emt 0:02:29]} 8. O-O {[%emt 0:01:55]} Nbd7 {[%emt 0:00:16]} 9. f4 {[%emt 0:00:55]} Ne4 {[%emt 0:04:36]} 10. cxd5 {[%emt 0:05:28]} exd5 {[%emt 0:01:26]} 11. Nd3 {[%emt 0:13:03]} Ndf6 {[%emt 0:06:47]} 12. a3 {[%emt 0:02:51]} a6 {[%emt 0:05:06]} 13. Bf3 {[%emt 0:02:15]} Bd6 {[%emt 0:07:45]} 14. Ne5 {[%emt 0:03:24]} Qe7 {[%emt 0:06:05]} 15. Bd2 {[%emt 0:02:49]} Nxd2 {[%emt 0:02:54]} 16. Qxd2 {[%emt 0:00:08]} O-O {[%emt 0:00:18]} 17. Kh1 {[%emt 0:05:13]} Rad8 {[%emt 0:01:52]} 18. Qe1 {[%emt 0:03:35]} Nh7 {[%emt 0:10:41]} 19. Qf2 {[%emt 0:02:13]} f6 {[%emt 0:02:48]} 20. g4 {[%emt 0:01:31]} fxe5 {[%emt 0:06:56]} 21. gxf5 {[%emt 0:02:25]} exd4 {[%emt 0:02:30]} 22. exd4 {[%emt 0:01:07]} Rxf5 {[%emt 0:02:58]} 23. Rae1 {[%emt 0:00:57]} Qf6 {[%emt 0:02:32]} 24. Ne2 {[%emt 0:00:52]} Rf8 {[%emt 0:00:49]} 25. Bg4 {[%emt 0:02:03]} Rg5 {[%emt 0:03:37]} 26. Qg2 {[%emt 0:07:26]} Rg6 {[%emt 0:12:45]} 27. f5 {[%emt 0:02:05]} Rg5 {[%emt 0:02:33]} 28. h4 {[%emt 0:00:34]} Rh5 {[%emt 0:02:00]} 29. Bxh5 {[%emt 0:02:04]} Qxh4+ {[%emt 0:00:13]} 30. Kg1 {[%emt 0:00:31]} Qxh5 {[%emt 0:00:03]} 31. Nf4 {[%emt 0:07:24]} Qh4 {[%emt 0:05:10]} 32. Ne6 {[%emt 0:05:54]} Ng5 {[%emt 0:02:47]} 33. Nxg5 {[%emt 0:05:13]} Qxd4+ {[%emt 0:01:12]} 34. Kh1 {[%emt 0:03:39]} hxg5 {[%emt 0:01:40]} 35. Qxg5 {[%emt 0:01:43]} Rf6 {[%emt 0:02:39]} 36. Rg1 {[%emt 0:06:36]} Rxf5 {[%emt 0:09:55]} 37. Qxf5 {[%emt 0:07:30]} Qh4+ {[%emt 0:00:57]} 38. Kg2 {[%emt 0:00:06]} 1-0

[Event "7. Arber-Senioren-Cup 2019"]
[Site "Bodenmais"]
[Date "2019.08.02"]
[Round "7.19"]
[White "Kirschner, Torsten"]
[Black "Gerl, Hans"]
[Result "1-0"]
[ECO "E17"]
[WhiteElo "1767"]
[BlackElo "1955"]
[Annotator "NA"]
[PlyCount "181"]
[EventDate "2019.07.27"]
[EventType "swiss"]
[EventCountry "GER"]
[SourceTitle "playchess.com"]
[Source "ChessBase"]
[SourceQuality "1"]
[TimeControl "60/7800+30:0"]

1. d4 {[%emt 0:00:00]} Nf6 {[%emt 0:00:00]} 2. c4 {[%emt 0:00:01]} e6 {[%emt 0:00:00]} 3. Nf3 {[%emt 0:00:38]} b6 {[%emt 0:00:13]} 4. g3 {[%emt 0:01:19]} Bb7 {[%emt 0:01:13]} 5. Bg2 {[%emt 0:00:23]} Be7 {[%emt 0:00:53]} 6. O-O {[%emt 0:01:17]} O-O {[%emt 0:00:20]} 7. d5 {[%emt 0:02:30]} exd5 8. Nh4 c6 {[%emt 0:05:42]} 9. cxd5 {[%emt 0:03:25]} Nxd5 {[%emt 0:02:24]} 10. Nf5 {[%emt 0:01:22]} Na6 {[%emt 0:03:01]} 11. e4 {[%emt 0:02:37]} Nf6 {[%emt 0:04:47]} 12. Nc3 {[%emt 0:02:59]} d6 {[%emt 0:02:04]} 13. Bf4 {[%emt 0:10:30]} Ne8 {[%emt 0:02:56]} 14. Qg4 {[%emt 0:04:12]} Bc8 {[%emt 0:03:01]} 15. Rad1 {[%emt 0:09:58]} Bxf5 {[%emt 0:02:56]} 16. Qxf5 {[%emt 0:02:33]} Qc8 {[%emt 0:01:56]} 17. Qh5 {[%emt 0:02:23]} Nf6 {[%emt 0:00:52]} 18. Qe2 {[%emt 0:02:17]} Rd8 {[%emt 0:00:51]} 19. e5 {[%emt 0:02:49]} dxe5 {[%emt 0:00:26]} 20. Bxe5 {[%emt 0:00:54]} Rxd1 {[%emt 0:09:44]} 21. Rxd1 {[%emt 0:02:52]} Nc5 {[%emt 0:04:52]} 22. Bd6 {[%emt 0:12:55]} Bf8 {[%emt 0:04:49]} 23. Qf3 {[%emt 0:06:54]} Bxd6 24. Rxd6 Qe8 {[%emt 0:06:24]} 25. Qxc6 {[%emt 0:03:16]} Qe1+ {[%emt 0:00:56]} 26. Bf1 {[%emt 0:00:26]} Re8 {[%emt 0:01:35]} 27. Rd1 {[%emt 0:02:55]} Qe5 {[%emt 0:00:26]} 28. Bg2 {[%emt 0:05:38]} h5 {[%emt 0:01:18]} 29. Qd6 {[%emt 0:00:51]} Qf5 {[%emt 0:01:32]} 30. Nd5 {[%emt 0:03:38]} Nxd5 {[%emt 0:08:25]} 31. Qxd5 {[%emt 0:00:57]} Qxd5 {[%emt 0:01:12]} 32. Rxd5 {[%emt 0:00:15]} g6 {[%emt 0:00:38]} 33. Kf1 {[%emt 0:01:03]} Re7 {[%emt 0:00:44]} 34. b4 {[%emt 0:01:54]} Ne6 {[%emt 0:00:22]} 35. Rd6 {[%emt 0:00:56]} Rc7 {[%emt 0:00:35]} 36. Rc6 {[%emt 0:01:23]} Rd7 {[%emt 0:00:10]} 37. Bh3 {[%emt 0:03:38]} Rd1+ {[%emt 0:04:10]} 38. Ke2 {[%emt 0:00:48]} Rb1 {[%emt 0:04:27]} 39. Bxe6 {[%emt 0:01:42]} fxe6 40. a3 Rb2+ {[%emt 0:01:45]} 41. Kf1 {[%emt 0:00:54]} Kf7 {[%emt 0:02:31]} 42. Rc7+ {[%emt 0:00:24]} Kf6 {[%emt 0:00:11]} 43. Rxa7 {[%emt 0:00:14]} Rb3 {[%emt 0:02:39]} 44. Ra6 {[%emt 0:00:24]} Ke5 {[%emt 0:00:13]} 45. Kg2 {[%emt 0:01:07]} Kd5 {[%emt 0:00:49]} 46. Rxb6 {[%emt 0:00:11]} Rxa3 {[%emt 0:00:12]} 47. h4 {[%emt 0:00:48]} Ke5 {[%emt 0:01:53]} 48. Rb8 {[%emt 0:00:26]} Rb3 {[%emt 0:00:23]} 49. b5 {[%emt 0:00:21]} Kd6 {[%emt 0:00:54]} 50. b6 {[%emt 0:00:44]} Kc6 {[%emt 0:01:20]} 51. Rg8 {[%emt 0:00:49]} Rxb6 52. Rxg6 Kd5 {[%emt 0:01:19]} 53. Rg5+ {[%emt 0:01:02]} Ke4 {[%emt 0:00:41]} 54. Rxh5 {[%emt 0:00:10]} e5 {[%emt 0:00:25]} 55. Rh8 {[%emt 0:00:38]} Kf5 {[%emt 0:00:59]} 56. Rh5+ {[%emt 0:01:45]} Ke4 {[%emt 0:00:52]} 57. f3+ {[%emt 0:00:17]} Kd4 {[%emt 0:00:14]} 58. g4 {[%emt 0:00:14]} Rb2+ {[%emt 0:01:29]} 59. Kg3 {[%emt 0:01:27]} Rb3 {[%emt 0:00:38]} 60. Rh8 {[%emt 0:01:14]} e4 {[%emt 0:00:23]} 61. Rd8+ {[%emt 2:10:41]} Kc4 {[%emt 2:10:55]} 62. Rf8 {[%emt 0:00:29]} e3 {[%emt 0:00:43]} 63. Re8 {[%emt 0:01:03]} Kd3 {[%emt 0:00:44]} 64. h5 {[%emt 0:00:16]} Rb1 {[%emt 0:09:29]} 65. h6 {[%emt 0:03:14]} Rh1 {[%emt 0:02:01]} 66. g5 {[%emt 0:00:20]} e2 {[%emt 0:00:16]} 67. Kg4 {[%emt 0:01:58]} Kd2 {[%emt 0:01:32]} 68. Kf5 {[%emt 0:00:48]} e1=Q {[%emt 0:00:24]} 69. Rxe1 {[%emt 0:00:10]} Kxe1 {[%emt 0:00:03]} 70. Kg6 {[%emt 0:00:19]} Kf2 {[%emt 0:00:26]} 71. f4 {[%emt 0:00:16]} Kf3 {[%emt 0:00:44]} 72. f5 {[%emt 0:00:29]} Kf4 {[%emt 0:00:19]} 73. f6 {[%emt 0:00:30]} Rg1 {[%emt 0:01:02]} 74. f7 {[%emt 0:00:28]} Rxg5+ {[%emt 0:00:27]} 75. Kf6 {[%emt 0:00:46]} Rf5+ {[%emt 0:00:14]} 76. Ke6 {[%emt 0:00:39]} Re5+ {[%emt 0:03:22]} 77. Kd6 {[%emt 0:01:56]} Rf5 {[%emt 0:00:16]} 78. h7 {[%emt 0:00:48]} Rxf7 {[%emt 0:00:15]} 79. h8=Q {[%emt 0:00:19]} Rf5 {[%emt 0:00:18]} 80. Qd4+ {[%emt 0:01:26]} Kg5 {[%emt 0:00:47]} 81. Qe4 {[%emt 0:00:41]} Rf6+ {[%emt 0:01:47]} 82. Ke5 {[%emt 0:03:50]} Rf7 {[%emt 0:00:43]} 83. Qg2+ {[%emt 0:01:07]} Kh6 {[%emt 0:00:26]} 84. Qg8 {[%emt 0:03:57]} Rg7 {[%emt 0:02:34]} 85. Qh8+ {[%emt 0:03:29]} Kg6 {[%emt 0:00:22]} 86. Qh4 {[%emt 0:00:33]} Rf7 {[%emt 0:01:07]} 87. Ke6 {[%emt 0:00:40]} Rf8 {[%emt 0:01:18]} 88. Qg4+ {[%emt 0:00:59]} Kh6 {[%emt 0:00:30]} 89. Ke7 {[%emt 0:00:45]} Rh8 {[%emt 0:02:51]} 90. Kf7 {[%emt 0:01:26]} Rh7+ {[%emt 0:00:16]} 91. Kf6 {[%emt 0:00:27]} 1-0

[Event "7. Arber-Senioren-Cup 2019"]
[Site "Bodenmais"]
[Date "2019.08.02"]
[Round "7.20"]
[White "Schmidt, Matthias"]
[Black "Sagner, Guenter"]
[Result "1-0"]
[ECO "A46"]
[WhiteElo "2020"]
[BlackElo "1696"]
[Annotator "NA"]
[PlyCount "31"]
[EventDate "2019.07.27"]
[EventType "swiss"]
[EventCountry "GER"]
[SourceTitle "playchess.com"]
[Source "ChessBase"]
[SourceQuality "1"]
[TimeControl "60/7800+30:0"]

1. d4 {[%emt 0:00:00]} Nf6 {[%emt 0:01:05]} 2. Nf3 {[%emt 0:00:00]} e6 {[%emt 0:00:21]} 3. g3 {[%emt 0:00:00]} c5 {[%emt 0:01:52]} 4. Bg2 {[%emt 0:01:31]} d5 {[%emt 0:00:15]} 5. O-O {[%emt 0:00:52]} Nc6 {[%emt 0:02:05]} 6. c3 {[%emt 0:02:36]} b6 {[%emt 0:02:50]} 7. Re1 {[%emt 0:01:18]} Bd6 {[%emt 0:01:41]} 8. Bg5 {[%emt 0:02:40]} h6 {[%emt 0:01:09]} 9. Bxf6 {[%emt 0:00:22]} Qxf6 {[%emt 0:00:05]} 10. dxc5 {[%emt 0:02:26]} bxc5 {[%emt 0:00:46]} 11. e4 {[%emt 0:03:43]} e5 {[%emt 0:09:35]} 12. exd5 {[%emt 0:08:30]} Ne7 {[%emt 0:02:53]} 13. Nbd2 {[%emt 0:02:52]} Nf5 {[%emt 0:05:46]} 14. Ne4 {[%emt 0:02:25]} Qd8 {[%emt 0:11:23]} 15. Nxd6+ Nxd6 16. Rxe5+ 1-0

[Event "7. Arber-Senioren-Cup 2019"]
[Site "Bodenmais"]
[Date "2019.08.02"]
[Round "7.21"]
[White "Klimpel, Siegfried"]
[Black "Hilbig, Dieter"]
[Result "0-1"]
[ECO "B21"]
[WhiteElo "1843"]
[BlackElo "1943"]
[Annotator "NA"]
[PlyCount "74"]
[EventDate "2019.07.27"]
[EventType "swiss"]
[EventCountry "GER"]
[SourceTitle "playchess.com"]
[Source "ChessBase"]
[SourceQuality "1"]
[TimeControl "60/7800+30:0"]

1. e4 {[%emt 0:00:00]} c5 {[%emt 0:00:00]} 2. d4 {[%emt 0:00:28]} cxd4 {[%emt 0:00:07]} 3. c3 {[%emt 0:00:07]} dxc3 {[%emt 0:00:10]} 4. Nxc3 {[%emt 0:00:06]} Nc6 {[%emt 0:00:37]} 5. Nf3 {[%emt 0:00:09]} d6 {[%emt 0:00:38]} 6. Bc4 {[%emt 0:00:39]} a6 {[%emt 0:00:28]} 7. O-O {[%emt 0:00:57]} Nf6 {[%emt 0:00:20]} 8. Bf4 {[%emt 0:01:14]} Bg4 {[%emt 0:02:28]} 9. Rc1 {[%emt 0:17:32]} e6 {[%emt 0:02:37]} 10. h3 {[%emt 0:03:33]} Bh5 {[%emt 0:01:32]} 11. g4 {[%emt 0:01:36]} Bg6 {[%emt 0:00:42]} 12. Qe2 {[%emt 0:00:22]} Be7 {[%emt 0:01:55]} 13. Rfd1 {[%emt 0:01:36]} Qb8 {[%emt 0:00:58]} 14. e5 {[%emt 0:03:21]} dxe5 {[%emt 0:03:55]} 15. Nxe5 {[%emt 0:00:35]} Nxe5 {[%emt 0:01:07]} 16. Bxe5 {[%emt 0:00:22]} Qa7 {[%emt 0:02:07]} 17. Bb5+ {[%emt 0:13:40]} axb5 {[%emt 0:11:09]} 18. Nxb5 {[%emt 0:00:31]} Qxa2 {[%emt 0:01:10]} 19. Nc7+ {[%emt 0:00:18]} Kf8 {[%emt 0:00:06]} 20. Nxa8 {[%emt 0:00:13]} Qxa8 {[%emt 0:00:08]} 21. Ra1 {[%emt 0:00:02]} Qc8 {[%emt 0:00:56]} 22. Rdc1 {[%emt 0:00:56]} Qd8 {[%emt 0:06:17]} 23. Ra4 {[%emt 0:10:09]} h5 {[%emt 0:12:11]} 24. Rc7 {[%emt 0:16:36]} Bd6 {[%emt 0:08:43]} 25. Bxd6+ {[%emt 0:11:37]} Qxd6 {[%emt 0:00:08]} 26. Rxb7 {[%emt 0:00:08]} Kg8 {[%emt 0:08:29]} 27. Ra8+ {[%emt 0:04:43]} Kh7 {[%emt 0:00:14]} 28. Rxh8+ {[%emt 0:00:06]} Kxh8 {[%emt 0:00:05]} 29. Rb3 {[%emt 0:04:52]} Qf4 {[%emt 0:10:06]} 30. Rf3 {[%emt 0:03:03]} Qc1+ {[%emt 0:00:15]} 31. Kh2 {[%emt 0:00:36]} Be4 {[%emt 0:06:06]} 32. Rc3 {[%emt 0:01:45]} Qh1+ {[%emt 0:00:55]} 33. Kg3 {[%emt 0:00:09]} Qg2+ {[%emt 0:01:47]} 34. Kh4 {[%emt 0:02:04]} Bg6 {[%emt 0:05:37]} 35. Rg3 {[%emt 0:01:14]} Qd5 {[%emt 0:00:57]} 36. Rg1 {[%emt 0:02:36]} Be4 {[%emt 0:07:22]} 37. Qd1 {[%emt 0:10:56]} g5+ {[%emt 0:00:23] Qe2} 0-1